bitfinex/quotes_BTCUSD_20250131
["timestamp","ask_amount","ask_price","bid_price","bid_amount"]
[1738354576625,1.60223914,102130.0,102120.0,0.00459778]
[1738354576823,1.64785072,102130.0,102120.0,0.00559778]
[1738354577045,1.66185072,102130.0,102120.0,0.00559778]
[1738354577472,1.67085072,102130.0,102120.0,0.00559778]
[1738354577688,1.76820748,102130.0,102120.0,0.00559778]
[1738354578319,1.76320748,102130.0,102120.0,0.00459778]
[1738354578521,1.76920748,102130.0,102120.0,0.00559778]
[1738354578967,1.78684978,102130.0,102120.0,0.00459778]
[1738354579176,1.88684978,102130.0,102120.0,0.00459778]
[1738354579380,1.88684978,102130.0,102120.0,0.00571978]
[1738354579381,1.94044978,102130.0,102120.0,0.00571978]
[1738354579819,1.92644978,102130.0,102120.0,0.00471978]
[1738354580031,0.15,102110.0,102100.0,0.0001222]
[1738354580269,1.51260328,102110.0,102100.0,0.0001222]
[1738354580477,1.53698137,102110.0,102100.0,0.0001222]
[1738354580688,1.51260328,102110.0,102100.0,0.0001222]
[1738354580896,1.26481818,102110.0,102100.0,0.0001222]
[1738354581101,1.24743012,102110.0,102100.0,0.0795222]
[1738354581311,1.48264162,102110.0,102100.0,0.0001222]
[1738354581529,1.50286301,102110.0,102100.0,0.0001222]
[1738354581740,1.71104506,102110.0,102100.0,0.0001222]
[1738354581941,1.80840182,102110.0,102100.0,0.0001222]
[1738354582143,1.80850182,102110.0,102100.0,0.0001222]
[1738354582355,1.80850182,102110.0,102080.0,0.0162909]
[1738354582356,0.0001,102090.0,102080.0,0.0162909]
[1738354582559,0.0001,102090.0,102070.0,0.000122]
[1738354582560,0.296943,102080.0,102070.0,0.000122]
[1738354582801,0.7989147,102080.0,102070.0,0.000122]
[1738354582979,0.6989147,102080.0,102070.0,0.000122]
[1738354583186,0.7059947,102080.0,102070.0,0.000122]
[1738354583390,0.57855794,102080.0,102070.0,0.000122]
[1738354583592,0.58568591,102080.0,102070.0,0.000122]
[1738354583805,0.30406136,102080.0,102070.0,0.085522]
[1738354584019,0.12901631,102080.0,102070.0,0.085522]
[1738354584238,0.13609631,102080.0,102070.0,0.085522]
[1738354584643,0.28303931,102080.0,102070.0,0.085522]
[1738354584847,0.13609631,102080.0,102070.0,0.085522]
[1738354585099,4.797e-05,102080.0,102070.0,0.47972216]
[1738354585444,4.797e-05,102080.0,102070.0,0.52762216]
[1738354585649,1.25963682,102110.0,102070.0,0.52762216]
[1738354585650,1.24743012,102110.0,102100.0,0.1302]
[1738354585856,1.24743012,102110.0,102100.0,0.14057924]
[1738354586072,0.13912992,102120.0,102110.0,0.0099]
[1738354586298,0.08736118,102160.0,102140.0,0.0099]
[1738354586509,0.146857,102140.0,102130.0,0.0922]
[1738354586731,0.153937,102140.0,102130.0,0.0823]
[1738354586935,0.25129376,102140.0,102130.0,0.0823]
[1738354587151,0.25118016,102140.0,102130.0,0.0823]
[1738354587360,0.146886,102120.0,102110.0,0.6285]
[1738354587563,0.27585434,102120.0,102110.0,0.0865]
[1738354587776,0.40482268,102120.0,102110.0,0.0766]
[1738354587994,0.195871,102110.0,102090.0,0.0766]
[1738354588204,0.27588234,102100.0,102090.0,0.0865]
[1738354588818,0.27587834,102110.0,102100.0,0.0099]
[1738354589021,0.12896834,102110.0,102100.0,0.0099]
[1738354589223,0.28486834,102110.0,102100.0,0.0099]
[1738354589439,0.12896834,102110.0,102100.0,0.0099]
[1738354589648,0.00708,102110.0,102100.0,0.2193359]
[1738354589856,0.00708,102110.0,102100.0,0.156814]
[1738354590059,0.00708,102110.0,102100.0,0.25503646]
[1738354590238,0.47170634,102120.0,102110.0,0.0099]
[1738354590444,0.47185056,102120.0,102110.0,0.0099]
[1738354590578,0.47185056,102120.0,102110.0,0.13429422]
[1738354590579,0.12911256,102120.0,102110.0,0.13429422]
[1738354590793,0.00014422,102120.0,102110.0,0.2844]
[1738354591222,0.00014422,102120.0,102110.0,0.38164316]
[1738354591720,0.00014422,102120.0,102110.0,0.92364316]
[1738354591936,0.964626,102120.0,102110.0,0.92564316]
[1738354592646,0.00514422,102120.0,102110.0,0.92564316]
[1738354593006,0.00514422,102120.0,102110.0,1.07564316]
[1738354593874,0.00514422,102120.0,102110.0,1.07364316]
[1738354594334,0.00514422,102120.0,102110.0,1.07664316]
[1738354594540,0.00014422,102120.0,102110.0,1.07664316]
[1738354594745,0.00014422,102120.0,102110.0,1.07364316]
[1738354595132,0.00114422,102120.0,102110.0,1.08064316]
[1738354595498,0.00014422,102120.0,102110.0,1.07364316]
[1738354595704,0.27599856,102120.0,102110.0,0.23474316]
[1738354595910,1.37044868,102120.0,102110.0,0.0862]
[1738354596110,1.7150486,102120.0,102110.0,0.007]
[1738354596555,1.48211192,102120.0,102110.0,0.007]
[1738354596971,1.48221192,102120.0,102110.0,0.007]
[1738354597193,1.86971964,102120.0,102110.0,0.007]
[1738354597394,1.86771964,102120.0,102110.0,0.007]
[1738354597614,1.86861964,102120.0,102110.0,0.01]
[1738354597954,0.2969,102110.0,102100.0,0.000122]
[1738354598208,0.34065386,102110.0,102100.0,0.010022]
[1738354598459,0.34065386,102110.0,102100.0,0.088822]
[1738354599072,0.34065386,102110.0,102100.0,0.078922]
[1738354599282,0.34565386,102110.0,102100.0,0.078922]
[1738354599717,0.37065386,102110.0,102100.0,0.078922]
[1738354599892,0.38265386,102110.0,102100.0,0.1515778]
[1738354600546,0.39165386,102110.0,102100.0,0.088822]
[1738354600766,0.39165386,102110.0,102100.0,0.078922]
[1738354600979,0.39165386,102110.0,102100.0,0.000122]
[1738354600980,0.51189702,102110.0,102100.0,0.000122]
[1738354601193,0.63889702,102110.0,102100.0,0.000122]
[1738354601600,0.66189702,102110.0,102100.0,0.000122]
[1738354601813,0.77459163,102110.0,102100.0,0.000122]
[1738354603017,0.74459163,102110.0,102100.0,0.000122]
[1738354603543,0.72867163,102110.0,102100.0,0.000122]
[1738354603751,0.63131487,102110.0,102100.0,0.000122]
[1738354603963,0.47423487,102110.0,102100.0,0.000122]
[1738354604115,0.46597702,102110.0,102100.0,0.000122]
[1738354604355,0.36899028,102110.0,102100.0,0.010022]
[1738354604523,0.22209028,102110.0,102100.0,0.156936]
[1738354604748,0.02833642,102110.0,102100.0,0.156936]
[1738354604952,0.02125642,102110.0,102100.0,0.156936]
[1738354605361,0.02125642,102110.0,102100.0,0.282136]
[1738354605533,0.02125642,102110.0,102100.0,0.37937916]
[1738354606268,0.02125642,102110.0,102100.0,0.36947916]
[1738354606477,0.02125642,102110.0,102100.0,0.37937916]
[1738354606884,0.00325642,102110.0,102100.0,0.37937916]
[1738354607263,0.00825642,102110.0,102100.0,0.37937916]
[1738354607627,0.00525642,102110.0,102100.0,0.37937916]
[1738354607829,0.00525642,102110.0,102100.0,0.38037916]
[1738354609166,0.00525642,102110.0,102100.0,0.92237916]
[1738354610902,0.19901028,102110.0,102100.0,0.91247916]
[1738354611103,0.34591028,102110.0,102100.0,0.631322]
[1738354612015,0.34591028,102110.0,102100.0,0.542122]
[1738354612220,0.49591028,102110.0,102100.0,0.000122]
[1738354612422,0.59626704,102110.0,102100.0,0.000122]
[1738354613293,0.34891028,102110.0,102100.0,0.010022]
[1738354613620,0.34591028,102110.0,102100.0,0.156936]
[1738354613831,0.34991028,102110.0,102100.0,0.010022]
[1738354614438,0.34591028,102110.0,102100.0,0.000122]
[1738354614755,0.59115344,102110.0,102100.0,0.000122]
[1738354614959,0.6885102,102110.0,102100.0,0.000122]
[1738354615156,0.59115344,102110.0,102100.0,0.000122]
[1738354616162,0.60015344,102110.0,102100.0,0.000122]
[1738354616812,0.62315344,102110.0,102100.0,0.000122]
[1738354618416,0.60015344,102110.0,102100.0,0.000122]
[1738354618977,0.50291028,102110.0,102100.0,0.000122]
[1738354619387,0.35999028,102110.0,102100.0,0.010022]
[1738354619608,0.35999028,102110.0,102100.0,0.1997703]
[1738354619609,0.21309028,102110.0,102100.0,0.1997703]
[1738354620170,0.01225642,102110.0,102100.0,0.1997703]
[1738354620376,0.38291028,102110.0,102100.0,0.000122]
[1738354620583,0.38291028,102110.0,102100.0,0.010022]
[1738354621025,0.38291028,102110.0,102100.0,0.000122]
[1738354621236,0.04225642,102110.0,102100.0,0.156936]
[1738354621449,0.01225642,102110.0,102100.0,0.25417916]
[1738354621862,0.01225642,102110.0,102100.0,0.48427916]
[1738354622065,0.01225642,102110.0,102100.0,1.02627916]
[1738354622268,0.00014422,102120.0,102110.0,0.0099]
[1738354622495,0.00014422,102120.0,102110.0,0.40484316]
[1738354622809,0.00014422,102120.0,102110.0,1.10684316]
[1738354623572,0.08363602,102140.0,102130.0,0.236871]
[1738354623846,0.20424189,102160.0,102150.0,0.386842]
[1738354623847,0.0002562,102160.0,102150.0,0.386842]
[1738354624051,0.00040039,102160.0,102150.0,1.11678516]
[1738354624166,0.00040039,102160.0,102150.0,1.12678516]
[1738354624775,0.000122,102170.0,102160.0,0.236828]
[1738354624974,0.000122,102170.0,102160.0,0.87607116]
[1738354625221,0.000122,102170.0,102160.0,0.89907116]
[1738354625623,0.000122,102170.0,102160.0,0.87607116]
[1738354627005,0.001122,102170.0,102160.0,0.88507116]
[1738354627475,0.002122,102170.0,102160.0,0.89307116]
[1738354628114,0.002122,102170.0,102160.0,0.88317116]
[1738354628320,0.002122,102170.0,102160.0,0.89307116]
[1738354628878,0.96660378,102170.0,102160.0,0.89307116]
[1738354629572,0.002122,102170.0,102160.0,0.89307116]
[1738354631831,0.34268986,102170.0,102160.0,0.35107116]
[1738354632035,0.34268986,102170.0,102160.0,0.20424316]
[1738354632440,0.34268986,102170.0,102160.0,0.35107116]
[1738354632647,0.34268986,102170.0,102160.0,0.20424316]
[1738354633064,0.34268986,102170.0,102160.0,0.35107116]
[1738354633271,0.002122,102170.0,102160.0,0.35107116]
[1738354633423,0.002122,102170.0,102160.0,0.89307116]
[1738354633836,0.002122,102170.0,102160.0,1.04307116]
[1738354634037,0.002122,102170.0,102160.0,1.07607116]
[1738354634445,0.002122,102170.0,102160.0,1.09607116]
[1738354635249,0.04887196,102180.0,102170.0,0.1245]
[1738354635459,0.04887196,102180.0,102170.0,0.91153561]
[1738354635658,0.02351154,102180.0,102170.0,1.27431102]
[1738354635951,0.000122,102200.0,102190.0,0.236085]
[1738354636152,0.00026617,102200.0,102190.0,0.93908026]
[1738354636724,0.34079103,102200.0,102190.0,0.2998371]
[1738354636927,0.00026617,102200.0,102190.0,0.93908026]
[1738354637330,0.00426617,102200.0,102190.0,0.94108026]
[1738354638946,0.00426617,102200.0,102190.0,1.09108026]
[1738354639160,0.00426617,102200.0,102190.0,1.11408026]
[1738354639388,0.00426617,102200.0,102190.0,1.10418026]
[1738354639897,0.00426617,102200.0,102190.0,1.09108026]
[1738354640088,0.00026617,102200.0,102190.0,0.92918026]
[1738354640324,0.00026617,102200.0,102190.0,0.93908026]
[1738354640531,0.00126617,102200.0,102190.0,0.94708026]
[1738354640731,0.00126617,102200.0,102190.0,0.95608026]
[1738354640732,0.19602003,102200.0,102190.0,0.95608026]
[1738354640900,0.00226617,102200.0,102190.0,1.00448026]
[1738354641088,0.00126617,102200.0,102190.0,1.06127114]
[1738354641292,0.00117725,102200.0,102190.0,1.19848026]
[1738354641471,0.00117725,102200.0,102190.0,1.17848026]
[1738354641674,0.00117725,102200.0,102190.0,1.14548026]
[1738354642071,0.00117725,102200.0,102190.0,1.16848026]
[1738354642303,0.00017725,102200.0,102190.0,1.19048026]
[1738354642508,0.00017725,102200.0,102190.0,1.38423412]
[1738354642685,0.00017725,102200.0,102190.0,1.44264595]
[1738354642893,0.00017725,102200.0,102190.0,1.24889209]
[1738354643092,0.00017725,102200.0,102190.0,1.43664595]
[1738354643598,0.00017725,102200.0,102190.0,1.2068408]
[1738354643743,0.00017725,102200.0,102190.0,1.20405125]
[1738354643951,0.00017725,102200.0,102190.0,1.19705125]
[1738354645412,0.00117725,102200.0,102190.0,1.20405125]
[1738354646367,0.00217725,102200.0,102190.0,1.21305125]
[1738354647351,0.00217725,102200.0,102190.0,1.23907096]
[1738354647711,0.00217725,102200.0,102190.0,1.20305125]
[1738354647918,0.00117725,102200.0,102190.0,1.15105125]
[1738354648120,0.146758,102210.0,102190.0,0.94275125]
[1738354648526,0.19375386,102200.0,102190.0,0.41965125]
[1738354648728,0.19375386,102210.0,102200.0,0.156671]
[1738354648948,1.69658106,102220.0,102200.0,0.47386593]
[1738354649164,1.50091206,102220.0,102210.0,0.24399916]
[1738354649770,1.50091206,102220.0,102210.0,0.0099]
[1738354649981,1.50091206,102220.0,102210.0,0.01631129]
[1738354650612,1.50091206,102220.0,102210.0,0.16306729]
[1738354650613,1.30524606,102220.0,102210.0,0.16306729]
[1738354650811,1.30524606,102220.0,102210.0,0.22681939]
[1738354651078,0.00025642,102220.0,102210.0,0.32406255]
[1738354651505,0.00025642,102220.0,102210.0,0.57816255]
[1738354651714,0.01225642,102220.0,102210.0,1.12116255]
[1738354651926,0.00325642,102220.0,102210.0,1.12016255]
[1738354652124,0.00025642,102220.0,102210.0,1.12016255]
[1738354652353,0.00525642,102220.0,102210.0,1.12016255]
[1738354652504,0.00525642,102220.0,102210.0,1.12116255]
[1738354652923,0.00525642,102220.0,102210.0,1.12816255]
[1738354652924,0.00625642,102220.0,102210.0,1.12816255]
[1738354653120,0.00625642,102220.0,102210.0,1.13716255]
[1738354653297,0.00625642,102220.0,102210.0,1.15716255]
[1738354653687,0.00625642,102220.0,102210.0,1.10416255]
[1738354654083,0.00625642,102220.0,102210.0,1.11454759]
[1738354654489,0.00625642,102220.0,102210.0,1.12054759]
[1738354655485,0.00625642,102220.0,102210.0,1.1141363]
[1738354656250,0.00625642,102220.0,102210.0,1.1371363]
[1738354656597,0.00625642,102220.0,102210.0,1.16748052]
[1738354659309,0.00625642,102220.0,102210.0,1.17748052]
[1738354659518,0.00625642,102220.0,102210.0,1.220222]
[1738354659717,0.96859285,102260.0,102250.0,0.156599]
[1738354659900,1.30951146,102260.0,102250.0,0.17345448]
[1738354660302,0.00048075,102260.0,102250.0,0.27167553]
[1738354660485,0.00048075,102260.0,102250.0,0.81269764]
[1738354660891,0.34091861,102260.0,102250.0,0.81269764]
[1738354661299,0.19423461,102260.0,102250.0,0.81269764]
[1738354661479,0.00048075,102260.0,102250.0,0.96269764]
[1738354661977,0.00048075,102260.0,102250.0,0.96369764]
[1738354662422,0.00048075,102260.0,102250.0,0.98769764]
[1738354662606,0.00048075,102260.0,102250.0,0.98669764]
[1738354662846,0.00048075,102260.0,102250.0,0.44469764]
[1738354663045,0.00048075,102260.0,102250.0,1.01703925]
[1738354663253,0.0002562,102270.0,102260.0,0.329584]
[1738354663464,0.00040033,102270.0,102260.0,0.52092087]
[1738354663895,0.00040033,102270.0,102260.0,0.61312087]
[1738354664105,0.00040033,102270.0,102260.0,1.17814093]
[1738354664314,0.00040033,102270.0,102260.0,1.39189479]
[1738354664519,0.00040033,102270.0,102260.0,1.36887473]
[1738354664930,0.00040033,102270.0,102260.0,1.37487473]
[1738354665162,0.000122,102280.0,102270.0,0.41197]
[1738354665386,0.000122,102280.0,102270.0,0.60301025]
[1738354665589,0.000122,102280.0,102270.0,0.57301025]
[1738354666066,0.000122,102280.0,102270.0,0.49606864]
[1738354666369,0.000122,102280.0,102270.0,0.42066864]
[1738354666582,0.34053186,102280.0,102270.0,0.81266864]
[1738354666816,0.19387586,102280.0,102270.0,0.81266864]
[1738354667019,0.000122,102280.0,102270.0,0.96266864]
[1738354667195,0.000122,102280.0,102270.0,0.96866864]
[1738354667352,0.000122,102280.0,102270.0,0.97766864]
[1738354667766,0.000122,102280.0,102270.0,0.27576864]
[1738354667969,0.34053186,102280.0,102270.0,0.04175548]
[1738354668569,0.34053186,102280.0,102270.0,0.0249]
[1738354668982,1.30501364,102280.0,102270.0,0.0159]
[1738354669835,1.30501364,102280.0,102270.0,0.0099]
[1738354670640,1.4987675,102280.0,102270.0,0.0099]
[1738354670853,0.14667,102270.0,102260.0,0.0099]
[1738354671046,0.19375386,102270.0,102250.0,0.89464204]
[1738354671265,0.19375386,102260.0,102250.0,0.8062002]
[1738354671449,1.15823564,102260.0,102250.0,0.8062002]
[1738354671648,1.30491964,102260.0,102250.0,0.2642002]
[1738354671945,1.30491964,102260.0,102250.0,0.1175062]
[1738354672150,1.30491964,102260.0,102250.0,0.10728729]
[1738354672369,1.30491964,102260.0,102250.0,0.01004413]
[1738354672712,1.30491964,102260.0,102250.0,0.01904413]
[1738354672954,1.30491964,102260.0,102250.0,0.00014413]
[1738354673386,1.30491964,102260.0,102250.0,0.01004413]
[1738354673594,1.53725964,102260.0,102250.0,0.00014413]
[1738354673805,1.89925666,102260.0,102250.0,0.00014413]
[1738354674033,1.7055028,102260.0,102250.0,0.00014413]
[1738354674684,1.7085028,102260.0,102250.0,0.00014413]
[1738354674863,1.90225666,102260.0,102250.0,0.00014413]
[1738354675016,1.99961342,102260.0,102250.0,0.00014413]
[1738354675398,1.99971342,102260.0,102250.0,0.00114413]
[1738354675614,1.99971342,102260.0,102250.0,0.00139991]
[1738354675952,1.99971342,102260.0,102250.0,0.00039991]
[1738354675953,1.99671342,102260.0,102250.0,0.00039991]
[1738354676286,1.99671342,102260.0,102250.0,0.00139991]
[1738354676490,2.01961342,102260.0,102250.0,0.00139991]
[1738354676622,2.01971342,102260.0,102250.0,0.00139991]
[1738354677718,2.01971342,102260.0,102250.0,9.1e-07]
[1738354678058,2.00989432,102260.0,102250.0,9.1e-07]
[1738354678262,2.0298084,102260.0,102250.0,9.1e-07]
[1738354678413,2.0297084,102260.0,102250.0,9.1e-07]
[1738354678619,0.146742,102220.0,102210.0,0.01015599]
[1738354678865,1.5375608,102220.0,102210.0,0.00025599]
[1738354679061,1.90431466,102220.0,102210.0,0.00025599]
[1738354679266,1.90431466,102220.0,102210.0,0.00666154]
[1738354679437,1.90431466,102220.0,102210.0,0.00025599]
[1738354679638,1.90431466,102220.0,102210.0,0.00666154]
[1738354679842,1.6805208,102220.0,102210.0,0.00073674]
[1738354680043,1.6945608,102220.0,102210.0,0.00173674]
[1738354680247,1.88831466,102220.0,102210.0,0.00173674]
[1738354680447,1.90431466,102220.0,102210.0,0.00073674]
[1738354680768,1.90431466,102220.0,102210.0,0.00715519]
[1738354680929,2.00177142,102220.0,102210.0,0.00073674]
[1738354681125,2.00177142,102220.0,102210.0,0.00715519]
[1738354681371,2.01212188,102220.0,102210.0,0.00715519]
[1738354681577,2.01202188,102220.0,102210.0,0.00715519]
[1738354681811,2.01912188,102220.0,102210.0,0.00815519]
[1738354682043,2.01902188,102220.0,102210.0,0.00815519]
[1738354682626,1.82526802,102220.0,102210.0,0.00815519]
[1738354682828,2.01902188,102220.0,102210.0,0.00815519]
[1738354683082,2.04212188,102220.0,102210.0,0.00815519]
[1738354683266,2.04212188,102220.0,102170.0,0.5519]
[1738354683267,0.146799,102180.0,102170.0,0.5519]
[1738354683590,0.146814,102170.0,102160.0,0.01015599]
[1738354683784,0.34760786,102170.0,102160.0,0.01015599]
[1738354683992,0.34760786,102170.0,102160.0,0.00025599]
[1738354684418,0.34760786,102170.0,102160.0,0.01015599]
[1738354684624,0.34760786,102170.0,102160.0,0.01030016]
[1738354684950,0.34760786,102170.0,102160.0,0.02611216]
[1738354685193,0.34760786,102170.0,102160.0,0.01030016]
[1738354685403,0.34760786,102170.0,102160.0,0.00040016]
[1738354686011,0.34760786,102170.0,102160.0,0.00540016]
[1738354686270,0.34760786,102170.0,102160.0,0.01340016]
[1738354686271,0.34860786,102170.0,102160.0,0.01340016]
[1738354686676,0.19475386,102170.0,102160.0,0.02330016]
[1738354686898,0.19475386,102170.0,102160.0,0.20681926]
[1738354686899,0.20179386,102170.0,102160.0,0.20681926]
[1738354687100,0.34860786,102170.0,102160.0,0.05999126]
[1738354687497,0.34156786,102170.0,102160.0,0.20681926]
[1738354687675,0.34156786,102170.0,102160.0,0.30406242]
[1738354687676,0.001,102170.0,102160.0,0.30406242]
[1738354688286,0.001,102170.0,102160.0,0.99606242]
[1738354688582,0.001,102170.0,102160.0,0.53506242]
[1738354689015,0.001,102170.0,102160.0,0.56806242]
[1738354689217,0.001,102170.0,102160.0,0.61776242]
[1738354690276,0.001,102170.0,102160.0,0.60776242]
[1738354690445,0.001,102170.0,102160.0,0.60276242]
[1738354691488,0.19375386,102190.0,102180.0,0.156699]
[1738354691691,0.19375386,102190.0,102180.0,0.20061548]
[1738354692404,0.34052486,102200.0,102190.0,0.0099]
[1738354692822,0.19375386,102200.0,102190.0,0.0099]
[1738354693228,0.20417175,102220.0,102200.0,0.205585]
[1738354693438,0.20079386,102220.0,102210.0,0.0099]
[1738354693637,0.19375386,102230.0,102220.0,0.0099]
[1738354693871,0.19375386,102240.0,102230.0,0.0099]
[1738354694046,0.20079386,102240.0,102230.0,0.0099]
[1738354694242,0.34750686,102240.0,102220.0,0.156642]
[1738354694442,0.20127402,102240.0,102230.0,0.0099]
[1738354694643,0.00752016,102240.0,102230.0,0.156627]
[1738354695226,0.20127402,102240.0,102230.0,0.0099]
[1738354695426,0.20527402,102240.0,102230.0,0.0099]
[1738354696186,0.35298702,102240.0,102230.0,0.0099]
[1738354696414,0.20627402,102240.0,102230.0,0.0099]
[1738354696583,0.35298702,102240.0,102230.0,0.0465911]
[1738354696787,0.34798702,102240.0,102230.0,0.0465911]
[1738354696987,0.20127402,102240.0,102230.0,0.1933181]
[1738354697192,0.00548016,102240.0,102230.0,0.1933181]
[1738354697377,0.00548016,102240.0,102230.0,0.44153934]
[1738354697571,0.00548016,102240.0,102230.0,0.44056126]
[1738354697773,0.00548016,102240.0,102230.0,0.98256126]
[1738354698001,0.00148016,102240.0,102230.0,0.98256126]
[1738354698200,0.00048016,102240.0,102230.0,0.98256126]
[1738354698405,0.00148016,102240.0,102230.0,0.99056126]
[1738354699586,0.00148016,102240.0,102230.0,0.008]
[1738354699587,0.19523402,102240.0,102230.0,0.008]
[1738354699708,0.19523402,102240.0,102230.0,0.0179]
[1738354700308,0.19523402,102240.0,102230.0,0.164627]
[1738354700635,0.19523402,102240.0,102230.0,0.0179]
[1738354701363,0.34194702,102240.0,102230.0,0.008]
[1738354701542,0.78305764,102240.0,102230.0,0.008]
[1738354702783,0.78205764,102240.0,102230.0,0.005]
[1738354703009,0.59730378,102240.0,102230.0,0.006]
[1738354703225,1.0839318,102240.0,102230.0,0.006]
[1738354703635,1.0839318,102240.0,102230.0,0.001]
[1738354703840,1.1344318,102240.0,102230.0,0.001]
[1738354704715,1.1574318,102240.0,102230.0,0.001]
[1738354706139,0.84332118,102240.0,102230.0,0.001]
[1738354706340,0.85036118,102240.0,102230.0,0.001]
[1738354707564,0.87036118,102240.0,102230.0,0.001]
[1738354707953,0.37998702,102240.0,102230.0,0.001]
[1738354708164,0.22623402,102240.0,102230.0,0.0109]
[1738354708367,0.37294702,102240.0,102230.0,0.0545197]
[1738354708755,0.03248016,102240.0,102230.0,0.0545197]
[1738354708956,0.03248016,102240.0,102230.0,0.29848986]
[1738354709927,0.02948016,102240.0,102230.0,0.29848986]
[1738354710132,0.02948016,102240.0,102230.0,0.15676286]
[1738354710346,0.02948016,102240.0,102230.0,0.30348986]
[1738354710759,0.02948016,102240.0,102230.0,0.30374585]
[1738354710952,0.02048016,102240.0,102230.0,0.30274585]
[1738354711143,0.02148016,102240.0,102230.0,0.31074585]
[1738354711443,0.02148016,102240.0,102230.0,0.05877569]
[1738354711650,0.36094702,102240.0,102230.0,0.00525599]
[1738354711861,0.36194702,102240.0,102230.0,0.00025599]
[1738354712068,0.36094702,102240.0,102230.0,0.00125599]
[1738354712481,0.36194702,102240.0,102230.0,0.00825599]
[1738354712693,0.36194702,102240.0,102230.0,0.00025599]
[1738354713834,0.36494702,102240.0,102230.0,0.01015599]
[1738354714036,0.36494702,102240.0,102230.0,0.02584529]
[1738354714452,0.36494702,102240.0,102230.0,0.00025599]
[1738354714678,0.36494702,102240.0,102230.0,0.01015599]
[1738354714869,0.22723402,102240.0,102230.0,0.01115599]
[1738354715095,0.36094702,102240.0,102230.0,0.01015599]
[1738354715469,0.36494702,102240.0,102230.0,0.01015599]
[1738354715889,0.36594702,102240.0,102230.0,0.01015599]
[1738354716457,0.02448016,102240.0,102230.0,0.28938125]
[1738354716649,0.02448016,102240.0,102230.0,0.37108125]
[1738354716877,0.02448016,102240.0,102230.0,0.22435425]
[1738354717078,0.21823402,102240.0,102230.0,0.22435425]
[1738354717481,0.02448016,102240.0,102230.0,0.37108125]
[1738354717685,0.02048016,102240.0,102230.0,0.37108125]
[1738354717924,0.21423402,102240.0,102230.0,0.37108125]
[1738354718134,0.21423402,102240.0,102230.0,0.09185599]
[1738354718311,0.02048016,102240.0,102230.0,0.33680431]
[1738354718514,0.02048016,102240.0,102230.0,0.33682615]
[1738354718715,0.02048016,102240.0,102230.0,0.19009915]
[1738354718928,0.02048016,102240.0,102230.0,0.33582615]
[1738354719180,0.02948016,102240.0,102230.0,0.33682615]
[1738354719595,0.02948016,102240.0,102230.0,0.19009915]
[1738354720016,0.02948016,102240.0,102230.0,0.18909915]
[1738354720017,0.02048016,102240.0,102230.0,0.18909915]
[1738354720220,0.02448016,102240.0,102230.0,0.18909915]
[1738354721574,0.36494702,102240.0,102230.0,0.00025599]
[1738354721784,0.36494702,102240.0,102230.0,0.01015599]
[1738354721996,0.7533008,102240.0,102230.0,0.00025599]
[1738354722197,0.46219018,102240.0,102230.0,0.00025599]
[1738354723446,0.46231208,102240.0,102230.0,0.00025599]
[1738354723656,0.65606594,102240.0,102230.0,0.00025599]
[1738354724499,0.80606594,102240.0,102230.0,0.00025599]
[1738354724712,0.94174159,102240.0,102230.0,0.00025599]
[1738354725470,0.93774159,102240.0,102230.0,0.00025599]
[1738354725864,0.94974159,102240.0,102230.0,0.00125599]
[1738354726097,0.63563097,102240.0,102230.0,0.00125599]
[1738354726246,0.82938483,102240.0,102230.0,0.00125599]
[1738354726650,0.85238483,102240.0,102230.0,0.00125599]
[1738354728589,0.85248483,102240.0,102230.0,0.00125599]
[1738354729920,0.86507008,102240.0,102230.0,0.00125599]
[1738354730126,1.06920683,102240.0,102230.0,0.00125599]
[1738354730305,1.09438845,102240.0,102230.0,0.00125599]
[1738354730519,1.11428845,102240.0,102230.0,0.00125599]
[1738354730722,0.319742,102220.0,102210.0,0.00025578]
[1738354731077,1.5752208,102220.0,102210.0,0.00025578]
[1738354731285,1.67257756,102220.0,102210.0,0.00025578]
[1738354732332,1.67557756,102220.0,102210.0,0.00025578]
[1738354733315,1.68822668,102220.0,102210.0,0.00025578]
[1738354734977,1.67422668,102220.0,102210.0,0.00025578]
[1738354735176,1.68126668,102220.0,102210.0,0.00025578]
[1738354735379,1.32962676,102220.0,102210.0,0.00025578]
[1738354735587,1.33666676,102220.0,102210.0,0.00025578]
[1738354741540,1.43390992,102220.0,102210.0,0.00025578]
[1738354741745,1.80066378,102220.0,102210.0,0.00025578]
[1738354742206,1.60690992,102220.0,102210.0,0.00025578]
[1738354742418,1.70426668,102220.0,102210.0,0.00025578]
[1738354744735,1.89812054,102220.0,102210.0,0.00025578]
[1738354744932,2.0664564,102220.0,102210.0,0.00025578]
[1738354745747,2.0664564,102220.0,102210.0,7.8e-07]
[1738354745956,2.19263639,102220.0,102210.0,7.8e-07]
[1738354746391,2.21257558,102220.0,102210.0,7.8e-07]
[1738354746602,2.10553558,102220.0,102210.0,7.8e-07]
[1738354746806,1.67364911,102220.0,102210.0,7.8e-07]
[1738354747015,1.35198936,102220.0,102210.0,7.8e-07]
[1738354747225,0.165782,102220.0,102210.0,0.00990078]
[1738354747432,0.012,102220.0,102210.0,0.48467826]
[1738354747643,0.012,102220.0,102210.0,0.53159994]
[1738354748051,0.009,102220.0,102210.0,0.53159994]
[1738354748693,0.009,102220.0,102210.0,0.38159994]
[1738354748868,0.19375386,102220.0,102210.0,0.38159994]
[1738354749082,0.53625286,102230.0,102220.0,0.0099]
[1738354749316,0.000122,102230.0,102220.0,0.156642]
[1738354749496,0.000122,102230.0,102220.0,0.25486333]
[1738354749735,0.000122,102230.0,102220.0,0.33358516]
[1738354751126,0.146849,102230.0,102220.0,0.18684316]
[1738354751487,0.34060286,102230.0,102220.0,0.0797]
[1738354751689,0.34360286,102230.0,102220.0,0.0807]
[1738354752777,0.34360286,102230.0,102220.0,0.001]
[1738354754708,0.34360286,102230.0,102220.0,0.0109]
[1738354755719,0.34360286,102230.0,102220.0,0.03917568]
[1738354755906,0.149849,102230.0,102220.0,0.03917568]
[1738354756111,0.003122,102230.0,102220.0,0.28413904]
[1738354756241,0.003122,102230.0,102220.0,0.28316084]
[1738354756451,0.003122,102230.0,102220.0,0.51026084]
[1738354757103,0.34360286,102230.0,102220.0,0.17534316]
[1738354757317,0.34360286,102230.0,102220.0,0.088]
[1738354757515,0.34360286,102230.0,102220.0,0.087]
[1738354757720,0.34360286,102230.0,102220.0,0.09]
[1738354758326,0.61384602,102230.0,102220.0,0.003]
[1738354758537,0.71120278,102230.0,102220.0,0.003]
[1738354758742,0.319842,102220.0,102210.0,7.8e-07]
[1738354758943,1.79421052,102220.0,102210.0,7.8e-07]
[1738354759198,1.79431052,102220.0,102210.0,7.8e-07]
[1738354759839,1.81421052,102220.0,102210.0,7.8e-07]
[1738354759973,1.91156728,102220.0,102210.0,7.8e-07]
[1738354760374,1.96284727,102220.0,102210.0,7.8e-07]